bitfinex/quotes_BTCUSD_20250518
["timestamp","ask_amount","ask_price","bid_price","bid_amount"]
[1747593058361,0.98874009,104650.0,104640.0,0.57001954]
[1747593058596,0.68120643,104650.0,104640.0,0.57957556]
[1747593058802,0.91054101,104650.0,104640.0,0.57001908]
[1747593059152,0.91054101,104650.0,104640.0,0.56046306]
[1747593059367,0.90098535,104650.0,104640.0,0.56046306]
[1747593059562,0.70031674,104650.0,104640.0,0.57001899]
[1747593059768,0.70987212,104650.0,104640.0,0.57001899]
[1747593060204,0.70987212,104650.0,104640.0,0.56046306]
[1747593060405,0.6716515,104650.0,104640.0,0.57001899]
[1747593060605,0.002,104650.0,104640.0,0.83896849]
[1747593060811,0.002,104650.0,104640.0,0.57001899]
[1747593061237,0.002,104650.0,104640.0,0.83896849]
[1747593061655,0.002,104650.0,104640.0,0.57001899]
[1747593062043,0.002,104650.0,104640.0,0.07171327]
[1747593062044,0.2313344,104650.0,104640.0,0.07171327]
[1747593062243,0.30953367,104650.0,104640.0,0.02052919]
[1747593062424,0.36138716,104650.0,104640.0,0.02052919]
[1747593062636,0.32923367,104650.0,104640.0,0.02052919]
[1747593062801,0.68377452,104650.0,104640.0,0.02052919]
[1747593063007,0.95272402,104650.0,104640.0,0.01141592]
[1747593064463,0.20070706,104630.0,104620.0,0.01172034]
[1747593064649,0.29801646,104630.0,104620.0,0.01172034]
[1747593065679,0.29801646,104630.0,104620.0,0.01472034]
[1747593065890,0.29801646,104630.0,104620.0,0.01672034]
[1747593066129,0.99209161,104630.0,104620.0,0.01672034]
[1747593066554,0.99209161,104630.0,104620.0,0.01611327]
[1747593066555,1.66174311,104630.0,104620.0,0.01611327]
[1747593066955,1.61085831,104630.0,104620.0,0.01611327]
[1747593067163,1.34190881,104630.0,104620.0,0.01611327]
[1747593067365,1.34190881,104630.0,104620.0,0.005]
[1747593067715,1.34290881,104630.0,104620.0,0.005]
[1747593067924,1.34190881,104630.0,104620.0,0.002]
[1747593068194,1.07249806,104630.0,104620.0,0.002]
[1747593068541,1.07649806,104630.0,104620.0,0.002]
[1747593068750,1.06749806,104630.0,104620.0,0.002]
[1747593069206,1.29869026,104630.0,104610.0,0.04047507]
[1747593069364,6.74009549,104620.0,104610.0,0.02155507]
[1747593069562,6.83740489,104620.0,104610.0,0.01905507]
[1747593070377,6.83740489,104620.0,104610.0,0.00385507]
[1747593070796,6.34028489,104620.0,104610.0,0.00385507]
[1747593071003,6.84690498,104620.0,104610.0,0.00385507]
[1747593071213,1.53095548,104620.0,104610.0,0.00385507]
[1747593071433,1.53595548,104620.0,104610.0,0.00385507]
[1747593071635,1.54595548,104620.0,104610.0,0.00385507]
[1747593071847,1.53595548,104620.0,104610.0,0.00385507]
[1747593072277,1.54595548,104620.0,104610.0,0.00385507]
[1747593072931,1.44864608,104620.0,104610.0,0.00385507]
[1747593073347,1.43864608,104620.0,104610.0,0.00385507]
[1747593073770,1.47734308,104620.0,104610.0,0.00385507]
[1747593073992,1.46734308,104620.0,104610.0,0.00385507]
[1747593074215,1.47734308,104620.0,104610.0,0.00385507]
[1747593074422,1.56465248,104620.0,104610.0,0.00385507]
[1747593074647,1.07761248,104620.0,104610.0,0.00385507]
[1747593074869,1.58445248,104620.0,104610.0,0.00385507]
[1747593075578,1.57445248,104620.0,104610.0,0.00385507]
[1747593076038,1.58445248,104620.0,104610.0,0.00385507]
[1747593077093,1.57445248,104620.0,104610.0,0.00385507]
[1747593078129,6.88340198,104620.0,104610.0,0.00385507]
[1747593078345,0.57528629,104610.0,104600.0,0.45120598]
[1747593078555,6.26049469,104610.0,104600.0,0.45120598]
[1747593078785,1.21049469,104610.0,104600.0,0.45120598]
[1747593078991,0.93154519,104610.0,104600.0,0.45120598]
[1747593079207,0.94154519,104610.0,104600.0,0.45120598]
[1747593079608,0.94754519,104610.0,104600.0,0.45120598]
[1747593079818,1.04485459,104610.0,104600.0,0.45120598]
[1747593080023,1.31780409,104610.0,104600.0,0.45120598]
[1747593080225,1.31380409,104610.0,104600.0,0.45120598]
[1747593080454,1.29580409,104610.0,104600.0,0.39642595]
[1747593080681,1.29580409,104610.0,104600.0,0.27901777]
[1747593080906,6.33980409,104610.0,104600.0,0.21675774]
[1747593081120,6.33980409,104610.0,104600.0,0.16895771]
[1747593081328,6.33980409,104610.0,104600.0,0.12115768]
[1747593081329,6.34380409,104610.0,104600.0,0.12115768]
[1747593081535,6.34380409,104610.0,104600.0,0.07335765]
[1747593081742,6.33980409,104610.0,104600.0,0.04780003]
[1747593081945,0.22034451,104590.0,104580.0,0.002]
[1747593082156,1.16061397,104590.0,104580.0,0.002]
[1747593083884,1.15061397,104590.0,104580.0,0.002]
[1747593084130,1.16261397,104590.0,104580.0,0.002]
[1747593084345,1.08500341,104590.0,104580.0,0.002]
[1747593084638,1.44954426,104590.0,104580.0,0.002]
[1747593086606,0.92303476,104590.0,104580.0,0.002]
[1747593086824,1.44918426,104590.0,104580.0,0.002]
[1747593087034,1.54645366,104590.0,104580.0,0.002]
[1747593087251,1.53645366,104590.0,104580.0,0.002]
[1747593088599,1.54645366,104590.0,104580.0,0.002]
[1747593089145,1.53645366,104590.0,104580.0,0.002]
[1747593089351,1.43914426,104590.0,104580.0,0.002]
[1747593089852,1.43898426,104590.0,104580.0,0.002]
[1747593090292,1.44898426,104590.0,104580.0,0.002]
[1747593091797,1.47768826,104590.0,104580.0,0.002]
[1747593092218,1.46768826,104590.0,104580.0,0.002]
[1747593092452,1.46768826,104590.0,104580.0,0.066]
[1747593092453,0.64965391,104590.0,104580.0,0.066]
[1747593092979,0.66171476,104590.0,104580.0,0.066]
[1747593093198,0.93066426,104590.0,104580.0,0.066]
[1747593093623,0.66171476,104590.0,104580.0,0.068]
[1747593093870,0.65971476,104590.0,104580.0,0.068]
[1747593094071,0.75702416,104590.0,104580.0,0.068]
[1747593094293,0.75802416,104590.0,104580.0,0.068]
[1747593095118,1.02697366,104590.0,104580.0,0.068]
[1747593095322,0.64617391,104590.0,104580.0,0.068]
[1747593095542,0.66071476,104590.0,104580.0,0.068]
[1747593097482,0.30617391,104590.0,104580.0,0.068]
[1747593098150,0.30617391,104590.0,104580.0,0.07714514]
[1747593098384,0.35591332,104590.0,104580.0,0.07714514]
[1747593098594,0.37045417,104590.0,104580.0,0.07714514]
[1747593098810,0.32071476,104590.0,104580.0,0.07714514]
[1747593100131,0.30617391,104590.0,104580.0,0.07714514]
[1747593100382,0.10787008,104590.0,104580.0,0.56602085]
[1747593100630,0.31821477,104590.0,104580.0,0.55645944]
[1747593100844,0.31821477,104590.0,104580.0,0.28750994]
[1747593101292,0.29909332,104590.0,104580.0,0.07714514]
[1747593101504,0.29909332,104590.0,104580.0,0.09236637]
[1747593102837,0.29909332,104590.0,104580.0,0.31229285]
[1747593102838,0.30865409,104590.0,104580.0,0.31229285]
[1747593103056,0.30865409,104590.0,104580.0,0.85975326]
[1747593103057,0.001,104590.0,104580.0,0.85975326]
[1747593103314,0.02968195,104590.0,104580.0,0.59080376]
[1747593103534,0.01056041,104590.0,104580.0,0.59080376]
[1747593103753,0.20122186,104620.0,104610.0,0.0626]
[1747593104007,0.98633126,104620.0,104610.0,0.0626]
[1747593104237,0.97675117,104620.0,104610.0,0.52273581]
[1747593104457,0.97675117,104620.0,104610.0,0.3315495]
[1747593104669,0.97675117,104620.0,104610.0,0.0626]
[1747593105101,0.97675117,104620.0,104610.0,0.07174514]
[1747593105965,0.97675117,104620.0,104610.0,0.29160875]
[1747593105966,0.79514154,104620.0,104610.0,0.29160875]
[1747593106180,0.99586769,104620.0,104610.0,0.56055825]
[1747593106394,0.2026608,104630.0,104620.0,0.29200016]
[1747593106395,0.02111433,104630.0,104620.0,0.29200016]
[1747593106608,0.11842373,104630.0,104620.0,0.56108435]
[1747593106817,0.02111378,104630.0,104620.0,0.56108435]
[1747593107237,0.01155675,104630.0,104620.0,0.57022949]
[1747593107469,0.02111378,104630.0,104620.0,0.57022949]
[1747593108124,0.02111378,104630.0,104620.0,0.57422949]
[1747593108393,0.04022829,104630.0,104620.0,0.58617426]
[1747593108628,0.0402282,104630.0,104620.0,0.80601666]
[1747593109106,0.04978559,104630.0,104620.0,0.80601666]
[1747593109454,0.01155675,104630.0,104620.0,0.80601666]
[1747593109664,0.002,104630.0,104620.0,0.80601666]
[1747593109876,0.01155666,104630.0,104620.0,0.80601666]
[1747593110546,0.02111341,104630.0,104620.0,0.80601666]
[1747593111552,0.03067025,104630.0,104620.0,0.80601666]
[1747593111957,0.03067035,104630.0,104620.0,0.80601666]
[1747593112174,0.21226409,104630.0,104620.0,0.51795137]
[1747593112418,0.23137823,104630.0,104620.0,0.55005881]
[1747593112544,0.03067071,104630.0,104620.0,0.55961657]
[1747593112774,0.02111359,104630.0,104620.0,0.55961657]
[1747593112990,0.002,104630.0,104620.0,0.55961657]
[1747593113619,0.002,104630.0,104620.0,0.89961657]
[1747593113847,0.02111341,104630.0,104620.0,0.89961657]
[1747593114676,0.21226409,104630.0,104620.0,0.4108254]
[1747593114872,0.21226409,104630.0,104620.0,0.061267]
[1747593115082,0.21226409,104630.0,104620.0,0.3171454]
[1747593115281,0.21226409,104630.0,104620.0,0.307587]
[1747593115492,0.21226409,104630.0,104620.0,0.061267]
[1747593115493,0.30001646,104630.0,104620.0,0.061267]
[1747593116560,0.30001646,104630.0,104620.0,0.05212186]
[1747593118280,0.31913097,104630.0,104620.0,0.33062976]
[1747593118531,0.31913097,104630.0,104620.0,0.53135591]
[1747593118771,0.31913097,104630.0,104620.0,0.05212186]
[1747593119023,0.30001664,104630.0,104620.0,0.05212186]
[1747593122494,0.39732604,104630.0,104620.0,0.00413469]
[1747593122497,0.68081639,104630.0,104620.0,0.00413469]
[1747593122678,1.07751639,104630.0,104620.0,0.00413469]
[1747593123209,1.32179639,104630.0,104620.0,0.00213469]
[1747593123417,1.32179639,104630.0,104620.0,0.00013469]
[1747593123649,1.32479639,104630.0,104620.0,0.00013469]
[1747593124135,1.32279639,104630.0,104620.0,0.00013469]
[1747593124581,1.33179639,104630.0,104620.0,0.00013469]
[1747593124810,1.32379639,104630.0,104620.0,0.00013469]
[1747593125078,1.33379639,104630.0,104620.0,0.00013469]
[1747593125348,1.32379639,104630.0,104620.0,0.00013469]
[1747593125596,0.66055749,104630.0,104620.0,0.00013469]
[1747593126290,0.30601664,104630.0,104620.0,0.06253469]
[1747593126501,0.30001664,104630.0,104620.0,0.06253469]
[1747593126717,0.30001664,104630.0,104620.0,0.03023469]
[1747593126947,0.30301664,104630.0,104620.0,0.00013469]
[1747593127373,0.31755749,104630.0,104620.0,0.00013469]
[1747593127604,0.66427107,104630.0,104620.0,0.00013469]
[1747593128452,0.39532157,104630.0,104620.0,0.00013469]
[1747593129117,0.66427107,104630.0,104620.0,0.00013469]
[1747593129329,0.39532157,104630.0,104620.0,0.00013469]
[1747593129963,0.31755749,104630.0,104620.0,0.00013469]
[1747593130411,0.31755749,104630.0,104620.0,0.03073469]
[1747593131065,0.30301664,104630.0,104620.0,0.06273469]
[1747593133065,0.30301664,104630.0,104620.0,0.26346112]
[1747593133275,0.11186634,104630.0,104620.0,0.57021705]
[1747593133502,0.33168727,104630.0,104620.0,0.55110126]
[1747593133700,0.34124475,104630.0,104620.0,0.5606592]
[1747593133936,0.33168809,104630.0,104620.0,0.29170979]
[1747593134150,0.33168809,104630.0,104620.0,0.57021723]
[1747593134362,0.33168809,104630.0,104620.0,0.57977499]
[1747593134363,0.0241135,104630.0,104620.0,0.57977499]
[1747593134574,0.03367072,104630.0,104620.0,0.57977499]
[1747593134990,0.03367072,104630.0,104620.0,0.83521397]
[1747593135193,0.04122802,104630.0,104620.0,0.83521397]
[1747593135421,0.04022802,104630.0,104620.0,0.83521397]
[1747593135631,0.23137778,104630.0,104620.0,0.67627975]
[1747593135875,0.23137778,104630.0,104620.0,0.4284465]
[1747593136068,0.03067072,104630.0,104620.0,0.42844586]
[1747593136275,0.03067072,104630.0,104620.0,0.69739536]
[1747593136479,0.0211136,104630.0,104620.0,0.69739536]
[1747593137153,0.03067063,104630.0,104620.0,0.69739536]
[1747593137563,0.0211135,104630.0,104620.0,0.69739536]
[1747593137766,0.0211135,104630.0,104620.0,1.03739536]
[1747593138674,0.0211135,104630.0,104620.0,1.09959536]
[1747593139099,0.03067062,104630.0,104620.0,1.09959536]
[1747593139507,0.03067053,104630.0,104620.0,1.09959536]
[1747593139726,0.23137759,104630.0,104620.0,1.08047975]
[1747593139952,0.21226454,104630.0,104620.0,0.32977141]
[1747593140169,0.21226454,104630.0,104620.0,0.08573141]
[1747593140362,0.30957394,104630.0,104620.0,0.08573141]
[1747593140624,0.30957394,104630.0,104620.0,0.05523141]
[1747593140832,0.30957394,104630.0,104620.0,0.02353141]
[1747593141467,0.30957394,104630.0,104620.0,0.01213243]
[1747593141684,0.32411479,104630.0,104620.0,0.01213243]
[1747593141907,0.96306429,104630.0,104620.0,0.01213243]
[1747593142113,0.99326429,104630.0,104620.0,0.01213243]
[1747593142333,0.99326429,104630.0,104620.0,0.003]
[1747593142544,0.21030429,104610.0,104600.0,0.28709898]
[1747593142760,0.30761369,104610.0,104600.0,0.04357272]
[1747593143612,0.30761369,104610.0,104600.0,0.01187272]
[1747593143821,0.30761369,104610.0,104600.0,0.0096087]
[1747593144868,0.32215454,104610.0,104600.0,0.0096087]
[1747593145080,0.32215454,104610.0,104600.0,0.0116087]
[1747593145300,0.96280404,104610.0,104600.0,0.0116087]
[1747593145527,1.51663354,104610.0,104600.0,0.00247374]
[1747593145738,1.52663354,104610.0,104600.0,0.00247374]
[1747593145947,1.52663354,104610.0,104600.0,0.00347374]
[1747593146159,1.62394294,104610.0,104600.0,0.00347374]
[1747593146372,1.62394294,104610.0,104600.0,0.00147374]
[1747593146794,1.62594294,104610.0,104600.0,0.00147374]
[1747593147234,1.62594294,104610.0,104600.0,0.00047374]
[1747593147444,1.35999344,104610.0,104600.0,0.00047374]
[1747593147879,1.07092394,104610.0,104600.0,0.00047374]
[1747593148094,1.09560502,104610.0,104600.0,0.00047374]
[1747593148340,1.08560502,104610.0,104600.0,0.00047374]
[1747593148558,1.53991308,104610.0,104600.0,0.00047374]
[1747593148990,1.02170502,104610.0,104600.0,0.00047374]
[1747593149211,0.77914502,104610.0,104600.0,0.00047374]
[1747593149434,0.92427562,104610.0,104600.0,0.00047374]
[1747593149672,1.44248368,104610.0,104600.0,0.00047374]
[1747593149907,1.20004368,104610.0,104600.0,0.00047374]
[1747593150133,1.44408368,104610.0,104600.0,0.00047374]
[1747593150376,1.26558502,104610.0,104600.0,0.00047374]
[1747593150581,0.68183562,104610.0,104600.0,0.00047374]
[1747593150816,0.31261369,104610.0,104600.0,0.00047374]
[1747593151340,0.31261369,104610.0,104600.0,0.03057374]
[1747593151603,0.65261369,104610.0,104600.0,0.06297374]
[1747593151819,0.64961369,104610.0,104600.0,0.06297374]
[1747593152038,0.64861369,104610.0,104600.0,0.06297374]
[1747593152249,0.64961369,104610.0,104600.0,0.06297374]
[1747593152675,0.30961369,104610.0,104600.0,0.06297374]
[1747593152891,0.30005484,104610.0,104600.0,0.06297374]
[1747593153106,0.30005484,104610.0,104600.0,0.26373854]
[1747593153333,0.319173,104610.0,104600.0,0.28285853]
[1747593153535,0.30005502,104610.0,104600.0,0.06297374]
[1747593154198,0.30005502,104610.0,104600.0,0.00047374]
[1747593156078,0.30005502,104610.0,104600.0,0.06297374]
[1747593156276,0.11842738,104610.0,104600.0,0.28285789]
[1747593156476,0.31917291,104610.0,104600.0,0.28285808]
[1747593156681,0.31917291,104610.0,104600.0,0.27329831]
[1747593156829,0.30961406,104610.0,104600.0,0.27329849]
[1747593157039,0.30961406,104610.0,104600.0,0.28285844]
[1747593157241,0.30005502,104610.0,104600.0,0.06297374]
[1747593157411,0.29049571,104610.0,104600.0,0.06297374]
[1747593159467,0.30005493,104610.0,104600.0,0.27329849]
[1747593159674,0.12798615,104610.0,104600.0,0.28285835]
[1747593159815,0.12798615,104610.0,104600.0,0.74672599]
[1747593159816,0.002,104610.0,104600.0,0.74672599]
[1747593160267,0.002,104610.0,104600.0,1.08672599]
[1747593160471,0.72234372,104630.0,104620.0,0.28354213]
[1747593160622,0.75101498,104630.0,104620.0,0.28354213]
[1747593160829,0.9326079,104630.0,104620.0,0.28309364]
[1747593161027,0.73190075,104630.0,104620.0,0.30220943]
[1747593161233,0.7510148,104630.0,104620.0,0.30220943]
[1747593161685,0.7510148,104630.0,104620.0,0.30220952]
[1747593161829,0.7510148,104630.0,104620.0,0.29265167]
[1747593162040,0.93260781,104630.0,104620.0,0.07280909]
[1747593162276,1.02991721,104630.0,104620.0,0.07480909]
[1747593162718,1.02036018,104630.0,104620.0,0.07480909]
[1747593163127,1.02036018,104630.0,104620.0,0.07680909]
[1747593163554,1.02036018,104630.0,104620.0,0.01310909]
[1747593163775,1.02036018,104630.0,104620.0,0.004]
[1747593164590,0.20072624,104620.0,104610.0,0.0323]
[1747593164728,0.29803564,104620.0,104610.0,0.0323]
[1747593165132,0.92305069,104630.0,104620.0,0.0409584]
[1747593165334,1.02991757,104630.0,104620.0,0.26252643]
[1747593165539,1.04903081,104630.0,104620.0,0.27208455]
[1747593165848,1.03947469,104630.0,104620.0,0.0713584]
[1747593166211,1.02991766,104630.0,104620.0,0.0618]
[1747593166420,1.02991721,104630.0,104620.0,0.26252624]
[1747593166556,0.75101443,104630.0,104620.0,0.74550803]
[1747593166745,0.95172149,104630.0,104620.0,0.2816423]
[1747593167441,0.95172149,104630.0,104620.0,0.2826423]
[1747593167643,0.93260707,104630.0,104620.0,0.2836423]
[1747593167821,0.72234372,104630.0,104620.0,0.29320006]
[1747593168058,0.73190038,104630.0,104620.0,0.29320006]
[1747593168278,0.75101416,104630.0,104620.0,0.29320006]
[1747593168455,0.75101407,104630.0,104620.0,0.30230799]
[1747593168722,0.96127898,104630.0,104620.0,0.07290793]
[1747593168923,0.94216529,104630.0,104620.0,0.28319248]
[1747593169133,0.72234372,104630.0,104620.0,0.30230827]
[1747593169330,0.74145713,104630.0,104620.0,0.75661633]
[1747593169510,0.75101407,104630.0,104620.0,0.75661633]
[1747593169712,0.72234372,104630.0,104620.0,0.75661633]
[1747593170623,0.03454372,104630.0,104620.0,0.75661633]
[1747593171910,0.00152,104630.0,104620.0,0.75561633]
[1747593172210,0.00152,104630.0,104620.0,0.75861633]
[1747593172383,0.00152,104630.0,104620.0,1.09761633]
[1747593172597,0.00152,104630.0,104620.0,1.09961633]
[1747593172804,0.00152,104630.0,104620.0,1.11101531]
[1747593173140,0.00152,104630.0,104620.0,1.20832471]
[1747593177787,0.00152,104630.0,104620.0,1.02281549]
[1747593178000,0.00152,104630.0,104620.0,1.26321549]
[1747593178441,0.00152,104630.0,104620.0,1.02281549]
[1747593178679,0.00152,104630.0,104620.0,1.50505549]
[1747593178934,0.00152,104630.0,104620.0,1.52027672]
[1747593180482,0.00152,104630.0,104620.0,1.51527672]
[1747593180902,0.002,104650.0,104640.0,0.5598001]
[1747593181146,0.002,104650.0,104640.0,1.25880718]
[1747593183004,0.002,104650.0,104640.0,1.26791511]
[1747593183422,0.002,104650.0,104640.0,1.26991511]
[1747593183629,0.002,104650.0,104640.0,1.17660571]
[1747593184050,0.002,104650.0,104640.0,1.65840571]
[1747593184270,0.002,104650.0,104640.0,1.75571511]
[1747593184470,0.8491027,104680.0,104670.0,0.00955383]
[1747593184675,0.01924208,104670.0,104660.0,0.55485612]
[1747593184877,0.02879527,104670.0,104660.0,0.5548563]
[1747593185057,0.03834874,104670.0,104660.0,0.54530229]
[1747593185308,0.21987272,104670.0,104660.0,0.23384971]
[1747593185512,0.21031916,104670.0,104660.0,0.5217574]
[1747593185717,0.21987281,104670.0,104660.0,0.7635974]
[1747593185934,0.21031916,104670.0,104660.0,0.78225953]
[1747593186162,0.21031916,104670.0,104660.0,0.79181363]
[1747593186384,0.21031916,104670.0,104660.0,0.78225953]
[1747593186663,0.2103187,104670.0,104660.0,0.81635953]
[1747593186874,0.0192419,104670.0,104660.0,0.82591363]
[1747593187078,0.0096888,104670.0,104660.0,0.82591363]
[1747593187288,0.01924208,104670.0,104660.0,0.82591363]
[1747593187506,0.229426,104670.0,104660.0,0.75459648]
[1747593187751,0.229426,104670.0,104660.0,0.72139648]
[1747593187972,0.21031962,104670.0,104660.0,0.01010793]
[1747593188601,0.21031962,104670.0,104660.0,0.02921732]
[1747593188822,0.0001357,104670.0,104660.0,0.5799739]
[1747593189266,0.01915423,104670.0,104660.0,0.5799739]
[1747593189879,4.794e-05,104670.0,104660.0,0.5799739]
[1747593190130,4.794e-05,104670.0,104660.0,0.01010793]
[1747593190131,0.22933806,104670.0,104660.0,0.01010793]
[1747593190360,0.21023186,104670.0,104660.0,0.01010793]
[1747593190997,0.21023186,104670.0,104660.0,0.01966267]
[1747593191210,0.30754126,104670.0,104660.0,0.01010793]
[1747593191814,0.09735734,104670.0,104660.0,0.52976487]
[1747593192025,0.00960104,104670.0,104660.0,0.52976487]
[1747593192239,4.794e-05,104670.0,104660.0,0.56086487]
[1747593192886,0.00960095,104670.0,104660.0,0.56086487]
[1747593193776,4.794e-05,104670.0,104660.0,0.57225113]
[1747593194498,0.00960104,104670.0,104660.0,0.57225113]
[1747593194906,0.21978459,104670.0,104660.0,0.56269703]
[1747593195116,0.01915432,104670.0,104660.0,0.55070533]
[1747593195329,0.00960104,104670.0,104660.0,0.58390533]
[1747593195516,0.00960104,104670.0,104660.0,0.82362533]
[1747593195701,0.01915423,104670.0,104660.0,0.83881262]
[1747593196496,0.21023094,104670.0,104660.0,0.82925852]
[1747593196700,0.01915423,104670.0,104660.0,0.83881262]
[1747593196946,0.02870751,104670.0,104660.0,0.83881262]
[1747593197320,0.01915423,104670.0,104660.0,0.83881262]
[1747593197549,0.00960104,104670.0,104660.0,0.83881262]
[1747593197692,0.01915432,104670.0,104660.0,0.83881262]
[1747593197890,0.00960104,104670.0,104660.0,0.83881262]
[1747593198090,4.794e-05,104670.0,104660.0,0.83881262]
[1747593198313,4.794e-05,104670.0,104660.0,0.82742636]
[1747593198916,0.00960095,104670.0,104660.0,0.82742636]
[1747593199371,4.794e-05,104670.0,104660.0,0.82742636]
[1747593201661,4.794e-05,104670.0,104660.0,0.81223907]
[1747593203298,0.00960095,104670.0,104660.0,0.81223907]
[1747593203610,4.794e-05,104670.0,104660.0,0.81223907]
[1747593206428,0.70690456,104680.0,104660.0,0.78357584]
[1747593206662,0.69735219,104680.0,104670.0,0.55303595]
[1747593207076,0.70690456,104680.0,104670.0,0.55303595]
[1747593207284,0.69735219,104680.0,104670.0,0.55303595]
[1747593207532,0.21946118,104690.0,104680.0,0.21971649]
[1747593207741,0.22926849,104680.0,104670.0,0.45987555]
[1747593207947,0.2292684,104680.0,104670.0,0.47898276]
[1747593208175,0.21971557,104680.0,104670.0,0.51118285]
[1747593208381,0.0095521,104680.0,104670.0,0.53028951]
[1747593208579,0.0095521,104680.0,104670.0,0.56258951]
[1747593208756,0.01910438,104680.0,104670.0,0.56258951]
[1747593209115,0.01910438,104680.0,104670.0,0.57169744]
[1747593209578,0.02865684,104680.0,104670.0,0.57169744]
[1747593210176,0.03065684,104680.0,104670.0,0.57169744]
[1747593211144,0.23126794,104680.0,104670.0,0.54895072]
[1747593211352,0.23126794,104680.0,104670.0,0.53939753]
[1747593211560,0.23126794,104680.0,104670.0,0.54895072]
[1747593211969,0.2217153,104680.0,104670.0,0.54895072]
[1747593212157,0.02110447,104680.0,104670.0,0.58125072]
[1747593212357,0.002,104680.0,104670.0,0.58125072]
[1747593212564,0.01155219,104680.0,104670.0,0.85004956]
[1747593212840,0.0115521,104680.0,104670.0,0.85004956]
[1747593213326,0.0115521,104680.0,104670.0,0.58125072]
[1747593213527,0.01910429,104680.0,104670.0,0.5935266]
[1747593213790,0.02865666,104680.0,104670.0,0.58525072]
[1747593215579,0.01910429,104680.0,104670.0,0.58525072]
[1747593215718,0.02865666,104680.0,104670.0,0.58525072]
[1747593215912,0.02865666,104680.0,104670.0,0.52075072]
[1747593216159,0.03820912,104680.0,104670.0,0.52075072]
[1747593216332,0.03820912,104680.0,104670.0,0.55375072]
[1747593216534,0.01910429,104680.0,104670.0,0.55375072]
[1747593216739,0.01910429,104680.0,104670.0,0.58575072]
[1747593216957,0.02865666,104680.0,104670.0,0.58575072]
[1747593217190,0.11606985,104690.0,104680.0,0.21971639]
[1747593217501,0.32621362,104690.0,104680.0,0.52151532]
[1747593217662,0.32621362,104690.0,104680.0,0.52151541]
[1747593217862,0.32621362,104690.0,104680.0,0.48851541]
[1747593218228,0.32621362,104690.0,104680.0,0.47896296]
[1747593218430,0.32621362,104690.0,104680.0,0.47996296]
[1747593218752,0.32621362,104690.0,104680.0,0.48951542]
[1747593218947,0.32621362,104690.0,104680.0,0.49906797]
[1747593219148,0.32621362,104690.0,104680.0,0.53046797]
[1747593219351,0.32621362,104690.0,104680.0,0.5209156]
[1747593219574,0.32621362,104690.0,104680.0,0.51136296]
[1747593220019,0.32621362,104690.0,104680.0,0.4895156]
[1747593220386,0.31666161,104690.0,104680.0,0.49906806]
[1747593220610,0.32621352,104690.0,104680.0,0.52986815]
[1747593220866,0.32621352,104690.0,104680.0,0.5203156]
[1747593221077,0.32621352,104690.0,104680.0,0.52986815]
[1747593221519,0.13517259,104690.0,104680.0,0.53941988]
[1747593222626,0.14472441,104690.0,104680.0,0.53941988]
[1747593222744,0.12562086,104690.0,104680.0,0.53941988]
[1747593223147,0.12562086,104690.0,104680.0,0.57021988]
[1747593223352,0.02831146,104690.0,104680.0,0.57021988]
[1747593223608,0.02831146,104690.0,104680.0,0.57932781]
[1747593223820,0.02831146,104690.0,104680.0,1.3429978]
[1747593223821,0.00920863,104690.0,104680.0,1.3429978]
[1747593224143,0.00920863,104690.0,104680.0,1.07419896]
[1747593224929,0.00920863,104690.0,104680.0,1.07519896]
[1747593225164,0.03002417,104710.0,104700.0,0.25057414]
[1747593225368,0.02061641,104710.0,104700.0,0.75705298]
[1747593225506,0.01106687,104710.0,104700.0,0.78975298]
[1747593225725,0.02061632,104710.0,104700.0,0.79029366]
[1747593225932,0.01106687,104710.0,104700.0,0.79029366]
[1747593226129,0.02061632,104710.0,104700.0,0.79029366]
[1747593226655,0.02261632,104710.0,104700.0,0.81082579]
[1747593226980,0.01406687,104710.0,104700.0,0.81082579]
[1747593227208,0.01406687,104710.0,104700.0,1.07962463]
[1747593227591,0.01406687,104710.0,104700.0,0.81082579]
[1747593227792,0.01306687,104710.0,104700.0,0.81082579]
[1747593227997,0.02061623,104710.0,104700.0,1.04782579]
[1747593228228,0.02061623,104710.0,104700.0,1.01612579]
[1747593228444,0.01106687,104710.0,104700.0,1.01612579]
[1747593228642,0.01022687,104710.0,104700.0,1.04882579]
[1747593229162,0.01022687,104710.0,104700.0,1.06405806]
[1747593230182,0.20123059,104710.0,104700.0,1.05450761]
[1747593230386,0.3813399,104710.0,104700.0,0.03730508]
[1747593232633,0.3813399,104710.0,104700.0,0.02588088]
[1747593232814,0.3813399,104710.0,104700.0,0.01064861]
[1747593234012,0.32718935,104710.0,104700.0,0.48957132]
[1747593234195,0.32718935,104710.0,104700.0,0.49912223]
[1747593234560,0.33673953,104710.0,104700.0,0.50867296]
[1747593234740,0.32718935,104710.0,104700.0,0.50867278]
[1747593234895,0.32718935,104710.0,104700.0,0.49912223]
[1747593235110,0.11708581,104710.0,104700.0,0.50867278]
[1747593235291,0.02932604,104710.0,104700.0,0.58182323]
[1747593236387,0.01022687,104710.0,104700.0,0.58182323]
[1747593236605,0.02932595,104710.0,104700.0,0.58182323]
[1747593237503,0.01022687,104710.0,104700.0,0.58182323]
[1747593237747,0.01022687,104710.0,104700.0,0.59324743]
[1747593240436,0.01022687,104710.0,104700.0,0.6084797]
[1747593242095,0.01022687,104710.0,104700.0,1.21727854]
[1747593242543,0.01022687,104710.0,104700.0,0.9484797]
[1747593243243,0.21077995,104710.0,104700.0,0.9293787]
[1747593243451,0.22988068,104710.0,104700.0,0.03730508]
[1747593243643,0.31764026,104710.0,104700.0,0.02588088]
[1747593243844,0.38104026,104710.0,104700.0,0.02588088]
[1747593244219,0.31763926,104710.0,104700.0,0.49525241]
[1747593244427,0.32718926,104710.0,104700.0,0.29467972]
[1747593244644,0.32718926,104710.0,104700.0,0.22645393]
[1747593244833,0.32718926,104710.0,104700.0,0.24555575]
[1747593245066,0.31763926,104710.0,104700.0,0.26465712]
[1747593245302,0.32718917,104710.0,104700.0,0.25510603]
[1747593245510,0.33673926,104710.0,104700.0,0.51435423]
[1747593245711,0.32718917,104710.0,104700.0,0.52390487]
[1747593245840,0.32718917,104710.0,104700.0,0.25510603]
[1747593246215,0.32718917,104710.0,104700.0,0.24555539]
[1747593246428,0.10753627,104710.0,104700.0,0.58770468]
[1747593247495,0.01022687,104710.0,104700.0,0.58770468]
[1747593248105,0.01022687,104710.0,104700.0,0.92770468]
[1747593248346,0.01022687,104710.0,104700.0,1.19650352]
[1747593248562,0.01022687,104710.0,104700.0,0.927164]
[1747593249981,0.01022687,104710.0,104700.0,1.19596284]
[1747593250193,0.01022687,104710.0,104700.0,1.162604]
[1747593251193,0.01022687,104710.0,104700.0,1.43140284]
[1747593252135,0.01022687,104710.0,104700.0,1.44107311]
[1747593253128,0.01022687,104710.0,104700.0,1.157042]
[1747593253799,0.01022687,104710.0,104700.0,1.42584084]
[1747593254668,0.002,104730.0,104720.0,0.28173219]
[1747593254914,0.0024728,104730.0,104720.0,0.78617103]
[1747593255700,0.0024728,104730.0,104720.0,0.79527896]